[Event "Titled Tuesday Blitz November 07 Early 2023"]
[White "Bauman_Guy"]
[Black "Gharibyan, Mamikon"]
[BlackFideId "13308300"]
[WhiteElo "2923"]
[BlackElo "2795"]
[Result "1-0"]
[Round "6"]
[TimeControl "180+1"]
[Date "2023.11.07"]
[WhiteClock "0:00:48"]
[BlackClock "0:01:01"]
[Board "9"]

1. e4 {[%clk 0:02:59]}  e5 {[%clk 0:02:59]} 2. Nf3 {[%clk 0:03:00]}  Nc6 {[%clk 0:02:58]} 3. Bb5 {[%clk 0:02:59]}  Nf6 {[%clk 0:02:57]} 4. O-O {[%clk 0:02:59]}  Nxe4 {[%clk 0:02:57]} 5. Re1 {[%clk 0:02:59]}  Nd6 {[%clk 0:02:57]} 6. a4 {[%clk 0:03:00]}  Be7 {[%clk 0:02:56]} 7. Nc3 {[%clk 0:03:00]}  O-O {[%clk 0:02:44]} 8. d4 {[%clk 0:02:57]}  e4 {[%clk 0:02:40]} 9. Nxe4 {[%clk 0:02:57]}  Nxe4 {[%clk 0:02:40]} 10. Rxe4 {[%clk 0:02:58]}  a6 {[%clk 0:02:36]} 11. Bd3 {[%clk 0:02:54]}  d5 {[%clk 0:02:28]} 12. Re1 {[%clk 0:02:53]}  Nb4 {[%clk 0:02:26]} 13. Bf1 {[%clk 0:02:50]}  Bf5 {[%clk 0:02:21]} 14. c3 {[%clk 0:02:50]}  Nc2 {[%clk 0:02:13]} 15. Re5 {[%clk 0:02:49]}  Bg6 {[%clk 0:02:01]} 16. Ra2 {[%clk 0:02:47]}  Bf6 {[%clk 0:02:00]} 17. Re2 {[%clk 0:02:46]}  Re8 {[%clk 0:01:58]} 18. Rxc2 {[%clk 0:02:45]}  Bxc2 {[%clk 0:01:59]} 19. Qxc2 {[%clk 0:02:46]}  a5 {[%clk 0:01:56]} 20. Ra1 {[%clk 0:02:45]}  Qd6 {[%clk 0:01:55]} 21. g3 {[%clk 0:02:45]}  c6 {[%clk 0:01:55]} 22. Bf4 {[%clk 0:02:44]}  Qd7 {[%clk 0:01:54]} 23. h4 {[%clk 0:02:44]}  Qg4 {[%clk 0:01:52]} 24. Kg2 {[%clk 0:02:42]}  Re4 {[%clk 0:01:51]} 25. Nh2 {[%clk 0:02:36]}  Qh5 {[%clk 0:01:47]} 26. Bd3 {[%clk 0:02:35]}  Rxf4 {[%clk 0:01:47]} 27. gxf4 {[%clk 0:02:36]}  Qxh4 {[%clk 0:01:47]} 28. Qd2 {[%clk 0:02:32]}  g6 {[%clk 0:01:45]} 29. Re1 {[%clk 0:02:30]}  Bg7 {[%clk 0:01:44]} 30. Qe3 {[%clk 0:02:21]}  Bh6 {[%clk 0:01:43]} 31. Qg3 {[%clk 0:02:19]}  Qxf4 {[%clk 0:01:42]} 32. Ng4 {[%clk 0:02:11]}  Qxg3+ {[%clk 0:01:39]} 33. Kxg3 {[%clk 0:02:12]}  Bg5 {[%clk 0:01:40]} 34. f4 {[%clk 0:02:12]}  Bd8 {[%clk 0:01:39]} 35. Re8+ {[%clk 0:02:12]}  Kg7 {[%clk 0:01:39]} 36. Kf3 {[%clk 0:02:11]}  f6 {[%clk 0:01:35]} 37. c4 {[%clk 0:01:58]}  Kf7 {[%clk 0:01:34]} 38. Rh8 {[%clk 0:01:56]}  Kg7 {[%clk 0:01:34]} 39. Re8 {[%clk 0:01:56]}  Kf7 {[%clk 0:01:35]} 40. Re2 {[%clk 0:01:56]}  h5 {[%clk 0:01:30]} 41. Ne3 {[%clk 0:01:55]}  dxc4 {[%clk 0:01:30]} 42. Nxc4 {[%clk 0:01:54]}  Bc7 {[%clk 0:01:31]} 43. Rg2 {[%clk 0:01:44]}  Rg8 {[%clk 0:01:30]} 44. Nxa5 {[%clk 0:01:41]}  Rg7 {[%clk 0:01:20]} 45. Nxb7 {[%clk 0:01:38]}  g5 {[%clk 0:01:20]} 46. fxg5 {[%clk 0:01:27]}  fxg5 {[%clk 0:01:21]} 47. Bf5 {[%clk 0:00:57]}  Kf6 {[%clk 0:01:20]} 48. Bh3 {[%clk 0:00:53]}  g4+ {[%clk 0:01:10]} 49. Bxg4 {[%clk 0:00:53]}  hxg4+ {[%clk 0:01:11]} 50. Rxg4 {[%clk 0:00:54]}  Rh7 {[%clk 0:01:12]} 51. Nc5 {[%clk 0:00:52]}  Rh3+ {[%clk 0:01:10]} 52. Ke4 {[%clk 0:00:51]}  Rh2 {[%clk 0:01:09]} 53. b3 {[%clk 0:00:51]}  Re2+ {[%clk 0:01:08]} 54. Kd3 {[%clk 0:00:51]}  Ra2 {[%clk 0:01:05]} 55. Re4 {[%clk 0:00:51]}  Kf5 {[%clk 0:01:05]} 56. Re6 {[%clk 0:00:50]}  Ba5 {[%clk 0:01:00]} 57. Rxc6 {[%clk 0:00:50]}  Rd2+ {[%clk 0:00:59]} 58. Kc4 {[%clk 0:00:50]}  Bd8 {[%clk 0:01:00]} 59. b4 {[%clk 0:00:48]}  Bf6 {[%clk 0:01:00]} 60. Rxf6+ {[%clk 0:00:48]}  Kxf6 {[%clk 0:01:01]} 61. Ne4+ {[%clk 0:00:48]} 1-0


[Site "https://www.chess.com"]

[Event "Titled Tuesday Blitz November 07 Early 2023"]
[White "Zakhartsov, Vladimir"]
[Black "Le, Tuan Minh"]
[WhiteFideId "4145097"]
[BlackFideId "12401153"]
[WhiteElo "2828"]
[BlackElo "3074"]
[Result "1-0"]
[Round "6"]
[TimeControl "180+1"]
[Date "2023.11.07"]
[WhiteClock "0:00:38"]
[BlackClock "0:00:10"]
[Board "11"]

1. d4 {[%clk 0:02:59]}  d5 {[%clk 0:02:57]} 2. c4 {[%clk 0:02:59]}  c6 {[%clk 0:02:57]} 3. cxd5 {[%clk 0:02:56]}  cxd5 {[%clk 0:02:57]} 4. Bf4 {[%clk 0:02:56]}  Nf6 {[%clk 0:02:57]} 5. Nc3 {[%clk 0:02:56]}  Nc6 {[%clk 0:02:57]} 6. e3 {[%clk 0:02:56]}  a6 {[%clk 0:02:58]} 7. Bd3 {[%clk 0:02:49]}  Bg4 {[%clk 0:02:58]} 8. Nf3 {[%clk 0:02:47]}  e6 {[%clk 0:02:58]} 9. h3 {[%clk 0:02:46]}  Bxf3 {[%clk 0:02:57]} 10. Qxf3 {[%clk 0:02:47]}  Bd6 {[%clk 0:02:58]} 11. Bg5 {[%clk 0:02:47]}  Be7 {[%clk 0:02:57]} 12. O-O {[%clk 0:02:46]}  O-O {[%clk 0:02:55]} 13. Rac1 {[%clk 0:02:46]}  Rc8 {[%clk 0:02:55]} 14. a3 {[%clk 0:02:43]}  h6 {[%clk 0:02:37]} 15. Bxf6 {[%clk 0:02:37]}  Bxf6 {[%clk 0:02:36]} 16. Na4 {[%clk 0:02:37]}  Qe7 {[%clk 0:02:17]} 17. Rc2 {[%clk 0:02:05]}  Rcd8 {[%clk 0:01:52]} 18. Rfc1 {[%clk 0:01:58]}  e5 {[%clk 0:01:50]} 19. dxe5 {[%clk 0:01:58]}  Nxe5 {[%clk 0:01:45]} 20. Qe2 {[%clk 0:01:57]}  g6 {[%clk 0:01:34]} 21. Nc5 {[%clk 0:01:43]}  Rfe8 {[%clk 0:01:29]} 22. b4 {[%clk 0:01:43]}  Bg7 {[%clk 0:01:22]} 23. Qd1 {[%clk 0:01:36]}  d4 {[%clk 0:01:18]} 24. e4 {[%clk 0:01:29]}  g5 {[%clk 0:00:56]} 25. Bf1 {[%clk 0:01:12]}  Ng6 {[%clk 0:00:35]} 26. g3 {[%clk 0:01:06]}  Bf8 {[%clk 0:00:31]} 27. Bg2 {[%clk 0:01:03]}  Rd6 {[%clk 0:00:26]} 28. Nd3 {[%clk 0:01:01]}  Red8 {[%clk 0:00:21]} 29. e5 {[%clk 0:00:55]}  Re6 {[%clk 0:00:18]} 30. f4 {[%clk 0:00:51]}  gxf4 {[%clk 0:00:17]} 31. gxf4 {[%clk 0:00:52]}  Nh4 {[%clk 0:00:18]} 32. Rc7 {[%clk 0:00:40]}  Rd7 {[%clk 0:00:13]} 33. Rxd7 {[%clk 0:00:40]}  Qxd7 {[%clk 0:00:14]} 34. Qg4+ {[%clk 0:00:40]}  Ng6 {[%clk 0:00:14]} 35. f5 {[%clk 0:00:40]}  h5 {[%clk 0:00:10]} 36. fxe6 {[%clk 0:00:38]} 1-0


[Site "https://www.chess.com"]

[Event "Titled Tuesday Blitz November 07 Early 2023"]
[White "Pranesh M"]
[Black "Suyarov, Mukhammadzokhid"]
[WhiteFideId "35028600"]
[BlackFideId "14210495"]
[WhiteElo "3025"]
[BlackElo "2815"]
[Result "1/2-1/2"]
[Round "6"]
[TimeControl "180+1"]
[Date "2023.11.07"]
[WhiteClock "0:00:26"]
[BlackClock "0:00:05"]
[Board "13"]

1. e4 {[%clk 0:03:00]}  e6 {[%clk 0:02:53]} 2. d4 {[%clk 0:03:00]}  d5 {[%clk 0:02:53]} 3. Nd2 {[%clk 0:03:01]}  c5 {[%clk 0:02:51]} 4. Ngf3 {[%clk 0:03:01]}  cxd4 {[%clk 0:02:51]} 5. exd5 {[%clk 0:03:01]}  Qxd5 {[%clk 0:02:52]} 6. Bc4 {[%clk 0:03:01]}  Qd7 {[%clk 0:02:52]} 7. O-O {[%clk 0:03:01]}  Nc6 {[%clk 0:02:53]} 8. Nb3 {[%clk 0:03:01]}  Nf6 {[%clk 0:02:54]} 9. Qe2 {[%clk 0:03:01]}  Bd6 {[%clk 0:02:52]} 10. Rd1 {[%clk 0:03:02]}  O-O {[%clk 0:02:52]} 11. Nbxd4 {[%clk 0:03:02]}  Nxd4 {[%clk 0:02:52]} 12. Rxd4 {[%clk 0:03:02]}  Qc7 {[%clk 0:02:52]} 13. Bg5 {[%clk 0:03:03]}  Be7 {[%clk 0:02:45]} 14. Rad1 {[%clk 0:03:03]}  b6 {[%clk 0:02:42]} 15. Bf4 {[%clk 0:02:43]}  Qc5 {[%clk 0:02:37]} 16. Be5 {[%clk 0:02:34]}  Bb7 {[%clk 0:02:31]} 17. b4 {[%clk 0:02:33]}  Bxf3 {[%clk 0:02:14]} 18. gxf3 {[%clk 0:02:33]}  Qc6 {[%clk 0:02:11]} 19. Bd3 {[%clk 0:02:31]}  Rad8 {[%clk 0:01:47]} 20. c3 {[%clk 0:02:29]}  Rxd4 {[%clk 0:01:44]} 21. Bxd4 {[%clk 0:02:30]}  g6 {[%clk 0:01:37]} 22. Re1 {[%clk 0:02:17]}  Nh5 {[%clk 0:01:32]} 23. Qe4 {[%clk 0:02:12]}  Qc7 {[%clk 0:01:22]} 24. Qg4 {[%clk 0:02:00]}  Bf6 {[%clk 0:01:15]} 25. Bxf6 {[%clk 0:01:46]}  Nxf6 {[%clk 0:01:16]} 26. Qc4 {[%clk 0:01:43]}  Qxc4 {[%clk 0:01:10]} 27. Bxc4 {[%clk 0:01:44]}  Rc8 {[%clk 0:01:11]} 28. Rxe6 {[%clk 0:01:44]}  Rxc4 {[%clk 0:00:54]} 29. Rxf6 {[%clk 0:01:44]}  Rxc3 {[%clk 0:00:54]} 30. Rd6 {[%clk 0:01:45]}  Rxf3 {[%clk 0:00:54]} 31. Rd2 {[%clk 0:01:14]}  Ra3 {[%clk 0:00:52]} 32. Kg2 {[%clk 0:01:10]}  Kg7 {[%clk 0:00:49]} 33. Rc2 {[%clk 0:01:09]}  h5 {[%clk 0:00:48]} 34. b5 {[%clk 0:01:08]}  Kf6 {[%clk 0:00:43]} 35. Rd2 {[%clk 0:01:06]}  Kf5 {[%clk 0:00:39]} 36. h4 {[%clk 0:01:04]}  f6 {[%clk 0:00:35]} 37. Re2 {[%clk 0:01:03]}  Ra4 {[%clk 0:00:24]} 38. Kg3 {[%clk 0:01:00]}  Rg4+ {[%clk 0:00:23]} 39. Kh3 {[%clk 0:01:01]}  Rb4 {[%clk 0:00:24]} 40. Re7 {[%clk 0:00:58]}  Rxb5 {[%clk 0:00:24]} 41. Rxa7 {[%clk 0:00:58]}  Ra5 {[%clk 0:00:25]} 42. Rb7 {[%clk 0:00:54]}  Rxa2 {[%clk 0:00:25]} 43. Rxb6 {[%clk 0:00:50]}  Rxf2 {[%clk 0:00:23]} 44. Rb5+ {[%clk 0:00:51]}  Ke6 {[%clk 0:00:22]} 45. Rb6+ {[%clk 0:00:51]}  Kf7 {[%clk 0:00:22]} 46. Rb7+ {[%clk 0:00:51]}  Kg8 {[%clk 0:00:23]} 47. Kg3 {[%clk 0:00:52]}  Re2 {[%clk 0:00:23]} 48. Rb6 {[%clk 0:00:50]}  Kg7 {[%clk 0:00:22]} 49. Rb7+ {[%clk 0:00:51]}  Kh6 {[%clk 0:00:22]} 50. Rb6 {[%clk 0:00:51]}  Re3+ {[%clk 0:00:22]} 51. Kg2 {[%clk 0:00:49]}  Re4 {[%clk 0:00:22]} 52. Kh3 {[%clk 0:00:48]}  Rf4 {[%clk 0:00:21]} 53. Kg3 {[%clk 0:00:47]}  Rf1 {[%clk 0:00:21]} 54. Kg2 {[%clk 0:00:47]}  Rf5 {[%clk 0:00:20]} 55. Kg3 {[%clk 0:00:48]}  Kg7 {[%clk 0:00:20]} 56. Rb7+ {[%clk 0:00:48]}  Kf8 {[%clk 0:00:20]} 57. Rb8+ {[%clk 0:00:48]}  Kg7 {[%clk 0:00:20]} 58. Rb7+ {[%clk 0:00:49]}  Kh6 {[%clk 0:00:21]} 59. Rb6 {[%clk 0:00:49]}  Rf1 {[%clk 0:00:17]} 60. Kg2 {[%clk 0:00:50]}  Rf4 {[%clk 0:00:17]} 61. Kg3 {[%clk 0:00:50]}  Rg4+ {[%clk 0:00:17]} 62. Kh3 {[%clk 0:00:51]}  f5 {[%clk 0:00:18]} 63. Rb7 {[%clk 0:00:51]}  f4 {[%clk 0:00:18]} 64. Rf7 {[%clk 0:00:52]}  g5 {[%clk 0:00:14]} 65. hxg5+ {[%clk 0:00:53]}  Kxg5 {[%clk 0:00:15]} 66. Rg7+ {[%clk 0:00:51]}  Kf5 {[%clk 0:00:15]} 67. Rh7 {[%clk 0:00:51]}  Rg3+ {[%clk 0:00:15]} 68. Kh2 {[%clk 0:00:51]}  Kg4 {[%clk 0:00:16]} 69. Rg7+ {[%clk 0:00:49]}  Kf3 {[%clk 0:00:15]} 70. Rh7 {[%clk 0:00:45]}  Rg2+ {[%clk 0:00:15]} 71. Kh3 {[%clk 0:00:45]}  Ra2 {[%clk 0:00:15]} 72. Rxh5 {[%clk 0:00:44]}  Ra1 {[%clk 0:00:15]} 73. Kh2 {[%clk 0:00:44]}  Ra2+ {[%clk 0:00:15]} 74. Kg1 {[%clk 0:00:43]}  Ra1+ {[%clk 0:00:14]} 75. Kh2 {[%clk 0:00:43]}  Kf2 {[%clk 0:00:15]} 76. Rb5 {[%clk 0:00:43]}  Ra2 {[%clk 0:00:15]} 77. Kh3 {[%clk 0:00:41]}  f3 {[%clk 0:00:15]} 78. Rb7 {[%clk 0:00:33]}  Re2 {[%clk 0:00:15]} 79. Rb4 {[%clk 0:00:31]}  Kf1 {[%clk 0:00:11]} 80. Kg3 {[%clk 0:00:31]}  f2 {[%clk 0:00:11]} 81. Kf3 {[%clk 0:00:25]}  Re8 {[%clk 0:00:04]} 82. Rb1+ {[%clk 0:00:25]}  Re1 {[%clk 0:00:04]} 83. Rb2 {[%clk 0:00:25]}  Kg1 {[%clk 0:00:03]} 84. Rxf2 {[%clk 0:00:26]}  Rf1 {[%clk 0:00:04]} 85. Rxf1+ {[%clk 0:00:26]}  Kxf1 {[%clk 0:00:05]} 1/2-1/2


[Site "https://www.chess.com"]

[Event "Titled Tuesday Blitz November 07 Early 2023"]
[White "Tsydypov, Zhamsaran"]
[Black "Szpar, Milosz"]
[WhiteFideId "4108566"]
[BlackFideId "1184989"]
[WhiteElo "3018"]
[BlackElo "2811"]
[Result "1-0"]
[Round "6"]
[TimeControl "180+1"]
[Date "2023.11.07"]
[WhiteClock "0:01:24"]
[BlackClock "0:00:04"]
[Board "14"]

1. d4 {[%clk 0:03:00]}  d5 {[%clk 0:02:59]} 2. c4 {[%clk 0:02:58]}  c6 {[%clk 0:02:56]} 3. Nf3 {[%clk 0:02:58]}  Nf6 {[%clk 0:02:56]} 4. Nc3 {[%clk 0:02:58]}  dxc4 {[%clk 0:02:53]} 5. a4 {[%clk 0:02:58]}  Bf5 {[%clk 0:02:53]} 6. Ne5 {[%clk 0:02:55]}  Nbd7 {[%clk 0:02:48]} 7. Nxc4 {[%clk 0:02:54]}  Nb6 {[%clk 0:02:48]} 8. Ne5 {[%clk 0:02:52]}  a5 {[%clk 0:02:43]} 9. h4 {[%clk 0:02:51]}  h6 {[%clk 0:02:38]} 10. f3 {[%clk 0:02:50]}  Nfd7 {[%clk 0:02:34]} 11. e4 {[%clk 0:02:49]}  Nxe5 {[%clk 0:02:28]} 12. exf5 {[%clk 0:02:49]}  Ned7 {[%clk 0:02:26]} 13. Bf4 {[%clk 0:02:38]}  Nf6 {[%clk 0:02:26]} 14. Be5 {[%clk 0:02:37]}  Nbd5 {[%clk 0:02:15]} 15. Qb3 {[%clk 0:02:35]}  Nb4 {[%clk 0:02:08]} 16. Bc4 {[%clk 0:02:33]}  Nfd5 {[%clk 0:02:05]} 17. Nxd5 {[%clk 0:02:31]}  cxd5 {[%clk 0:01:57]} 18. Qxb4 {[%clk 0:02:12]}  axb4 {[%clk 0:01:53]} 19. Bb5+ {[%clk 0:02:10]}  Qd7 {[%clk 0:01:53]} 20. Bxd7+ {[%clk 0:02:10]}  Kxd7 {[%clk 0:01:53]} 21. Rc1 {[%clk 0:02:10]}  f6 {[%clk 0:01:21]} 22. Rc7+ {[%clk 0:02:05]}  Ke8 {[%clk 0:01:20]} 23. Bg3 {[%clk 0:02:00]}  Rxa4 {[%clk 0:01:20]} 24. Kd2 {[%clk 0:01:56]}  h5 {[%clk 0:01:09]} 25. Re1 {[%clk 0:01:53]}  Kf7 {[%clk 0:01:09]} 26. Bd6 {[%clk 0:01:52]}  b3 {[%clk 0:01:01]} 27. Kd3 {[%clk 0:01:50]}  Rc4 {[%clk 0:00:51]} 28. Rxb7 {[%clk 0:01:48]}  Kg8 {[%clk 0:00:26]} 29. Bxe7 {[%clk 0:01:48]}  Kh7 {[%clk 0:00:10]} 30. Bxf6 {[%clk 0:01:48]}  Rg8 {[%clk 0:00:07]} 31. Re8 {[%clk 0:01:37]}  Rc2 {[%clk 0:00:05]} 32. Rxb3 {[%clk 0:01:31]}  gxf6 {[%clk 0:00:05]} 33. Kxc2 {[%clk 0:01:31]}  Rxg2+ {[%clk 0:00:04]} 34. Kd3 {[%clk 0:01:31]}  Bg7 {[%clk 0:00:04]} 35. Rb7 {[%clk 0:01:30]}  Rg3 {[%clk 0:00:04]} 36. Ree7 {[%clk 0:01:31]}  Rxf3+ {[%clk 0:00:04]} 37. Kc2 {[%clk 0:01:28]}  Rg3 {[%clk 0:00:04]} 38. b4 {[%clk 0:01:27]}  Kh6 {[%clk 0:00:04]} 39. b5 {[%clk 0:01:24]}  Bf8 {[%clk 0:00:04]} 40. Rh7# {[%clk 0:01:24]} 1-0


[Site "https://www.chess.com"]

[Event "Titled Tuesday Blitz November 07 Early 2023"]
[White "Xiong, Jeffery"]
[Black "Sokolovsky, Yahli"]
[WhiteFideId "2047640"]
[BlackFideId "2820242"]
[WhiteElo "3005"]
[BlackElo "2803"]
[Result "1-0"]
[Round "6"]
[TimeControl "180+1"]
[Date "2023.11.07"]
[WhiteClock "0:01:43"]
[BlackClock "0:00:01"]
[Board "15"]

1. e4 {[%clk 0:03:00]}  d6 {[%clk 0:03:00]} 2. d4 {[%clk 0:03:00]}  g6 {[%clk 0:03:00]} 3. Nf3 {[%clk 0:02:59]}  Bg7 {[%clk 0:03:01]} 4. Be3 {[%clk 0:02:57]}  a6 {[%clk 0:03:01]} 5. c4 {[%clk 0:02:57]}  c5 {[%clk 0:02:55]} 6. Nc3 {[%clk 0:02:43]}  Qa5 {[%clk 0:02:07]} 7. Rc1 {[%clk 0:02:21]}  Bg4 {[%clk 0:02:06]} 8. d5 {[%clk 0:02:19]}  Nd7 {[%clk 0:02:01]} 9. Be2 {[%clk 0:02:19]}  Bxc3+ {[%clk 0:01:38]} 10. Rxc3 {[%clk 0:02:19]}  Qxa2 {[%clk 0:01:33]} 11. Qc1 {[%clk 0:02:10]}  Qa5 {[%clk 0:01:30]} 12. O-O {[%clk 0:02:06]}  Ngf6 {[%clk 0:01:30]} 13. Bh6 {[%clk 0:01:59]}  Nxe4 {[%clk 0:01:07]} 14. Re3 {[%clk 0:01:59]}  Bxf3 {[%clk 0:00:25]} 15. Bxf3 {[%clk 0:01:59]}  Nd2 {[%clk 0:00:25]} 16. Rfe1 {[%clk 0:01:49]}  Nxf3+ {[%clk 0:00:25]} 17. gxf3 {[%clk 0:01:50]}  O-O-O {[%clk 0:00:16]} 18. Rxe7 {[%clk 0:01:49]}  Ne5 {[%clk 0:00:15]} 19. Re3 {[%clk 0:01:46]}  Rhe8 {[%clk 0:00:13]} 20. Bg5 {[%clk 0:01:46]}  Rxe7 {[%clk 0:00:10]} 21. Bxe7 {[%clk 0:01:47]}  Re8 {[%clk 0:00:10]} 22. Bxd6 {[%clk 0:01:42]}  Nxf3+ {[%clk 0:00:11]} 23. Kg2 {[%clk 0:01:43]}  Nh4+ {[%clk 0:00:02]} 24. Kh3 {[%clk 0:01:43]}  Rxe3+ {[%clk 0:00:01]} 25. Qxe3 {[%clk 0:01:44]}  Qd8 {[%clk 0:00:01]} 26. Be7 {[%clk 0:01:44]}  Qd7+ {[%clk 0:00:01]} 27. Kxh4 {[%clk 0:01:44]}  Qf5 {[%clk 0:00:02]} 28. Qxc5+ {[%clk 0:01:43]}  Kd7 {[%clk 0:00:01]} 29. Qd6+ {[%clk 0:01:43]} 1-0


[Site "https://www.chess.com"]

[Event "Titled Tuesday Blitz November 07 Early 2023"]
[White "Klimkowski, Jan"]
[Black "Ibarra Jerez, Jose Carlos"]
[WhiteFideId "21856222"]
[BlackFideId "2226332"]
[WhiteElo "2799"]
[BlackElo "2993"]
[Result "1-0"]
[Round "6"]
[TimeControl "180+1"]
[Date "2023.11.07"]
[WhiteClock "0:00:09"]
[BlackClock "0:00:00"]
[Board "16"]

1. e4 {[%clk 0:03:00]}  c5 {[%clk 0:02:58]} 2. Nf3 {[%clk 0:03:01]}  Nc6 {[%clk 0:02:57]} 3. Bb5 {[%clk 0:03:00]}  e6 {[%clk 0:02:57]} 4. O-O {[%clk 0:03:00]}  Nge7 {[%clk 0:02:57]} 5. Re1 {[%clk 0:03:01]}  Nd4 {[%clk 0:02:57]} 6. Nxd4 {[%clk 0:03:00]}  cxd4 {[%clk 0:02:58]} 7. c3 {[%clk 0:02:59]}  a6 {[%clk 0:02:58]} 8. Bf1 {[%clk 0:02:59]}  Nc6 {[%clk 0:02:58]} 9. Na3 {[%clk 0:02:51]}  Be7 {[%clk 0:02:44]} 10. Nc2 {[%clk 0:02:50]}  d5 {[%clk 0:02:42]} 11. exd5 {[%clk 0:02:26]}  Qxd5 {[%clk 0:02:32]} 12. g3 {[%clk 0:02:21]}  O-O {[%clk 0:02:28]} 13. Bg2 {[%clk 0:02:22]}  Qd7 {[%clk 0:02:24]} 14. Bxc6 {[%clk 0:02:15]}  bxc6 {[%clk 0:02:19]} 15. Nxd4 {[%clk 0:02:15]}  c5 {[%clk 0:02:19]} 16. Nf3 {[%clk 0:02:03]}  Bb7 {[%clk 0:02:18]} 17. d4 {[%clk 0:01:34]}  cxd4 {[%clk 0:02:12]} 18. Nxd4 {[%clk 0:01:10]}  Rfd8 {[%clk 0:01:54]} 19. Qe2 {[%clk 0:00:59]}  Bc5 {[%clk 0:01:29]} 20. Be3 {[%clk 0:00:52]}  e5 {[%clk 0:01:24]} 21. Nf3 {[%clk 0:00:38]}  Bd6 {[%clk 0:00:58]} 22. Nd2 {[%clk 0:00:31]}  f5 {[%clk 0:00:55]} 23. f3 {[%clk 0:00:25]}  h6 {[%clk 0:00:45]} 24. Rad1 {[%clk 0:00:25]}  Qf7 {[%clk 0:00:43]} 25. Nc4 {[%clk 0:00:22]}  Bc7 {[%clk 0:00:41]} 26. b3 {[%clk 0:00:20]}  f4 {[%clk 0:00:37]} 27. gxf4 {[%clk 0:00:15]}  Qh5 {[%clk 0:00:35]} 28. Rxd8+ {[%clk 0:00:13]}  Rxd8 {[%clk 0:00:34]} 29. Nxe5 {[%clk 0:00:10]}  Bxe5 {[%clk 0:00:30]} 30. fxe5 {[%clk 0:00:11]}  Bxf3 {[%clk 0:00:30]} 31. Qf2 {[%clk 0:00:12]}  Rf8 {[%clk 0:00:26]} 32. Qg3 {[%clk 0:00:12]}  Bd5 {[%clk 0:00:24]} 33. Rf1 {[%clk 0:00:11]}  Rxf1+ {[%clk 0:00:13]} 34. Kxf1 {[%clk 0:00:12]}  Qd1+ {[%clk 0:00:14]} 35. Kf2 {[%clk 0:00:10]}  Qc2+ {[%clk 0:00:14]} 36. Ke1 {[%clk 0:00:10]}  Qxc3+ {[%clk 0:00:13]} 37. Bd2 {[%clk 0:00:10]}  Qa1+ {[%clk 0:00:11]} 38. Ke2 {[%clk 0:00:09]}  Qxa2 {[%clk 0:00:11]} 39. b4 {[%clk 0:00:08]}  Qc4+ {[%clk 0:00:11]} 40. Kf2 {[%clk 0:00:05]}  Qd4+ {[%clk 0:00:09]} 41. Qe3 {[%clk 0:00:05]}  Qh4+ {[%clk 0:00:09]} 42. Qg3 {[%clk 0:00:06]}  Qe4 {[%clk 0:00:09]} 43. Qf4 {[%clk 0:00:05]}  Qd3 {[%clk 0:00:06]} 44. Qe3 {[%clk 0:00:05]}  Qc2 {[%clk 0:00:05]} 45. Qc3 {[%clk 0:00:05]}  Qf5+ {[%clk 0:00:05]} 46. Ke1 {[%clk 0:00:05]}  Qe4+ {[%clk 0:00:04]} 47. Qe3 {[%clk 0:00:06]}  Qh1+ {[%clk 0:00:04]} 48. Ke2 {[%clk 0:00:06]}  Qxh2+ {[%clk 0:00:04]} 49. Kd3 {[%clk 0:00:07]}  Qh5 {[%clk 0:00:02]} 50. Kd4 {[%clk 0:00:08]}  Qg6 {[%clk 0:00:03]} 51. Kxd5 {[%clk 0:00:08]}  Qe8 {[%clk 0:00:01]} 52. e6 {[%clk 0:00:09]}  Qb5+ {[%clk 0:00:01]} 53. Kd6 {[%clk 0:00:07]}  Qb8+ {[%clk 0:00:01]} 54. Kc6 {[%clk 0:00:07]}  Qc8+ {[%clk 0:00:02]} 55. Kb6 {[%clk 0:00:07]}  Qd8+ {[%clk 0:00:01]} 56. Kxa6 {[%clk 0:00:08]}  Qd6+ {[%clk 0:00:02]} 57. Kb5 {[%clk 0:00:08]}  Qd5+ {[%clk 0:00:02]} 58. Ka4 {[%clk 0:00:08]}  Qa2+ {[%clk 0:00:03]} 59. Kb5 {[%clk 0:00:09]}  Qd5+ {[%clk 0:00:03]} 60. Kb6 {[%clk 0:00:09]}  Qd6+ {[%clk 0:00:03]} 61. Kb7 {[%clk 0:00:10]}  Qd5+ {[%clk 0:00:04]} 62. Kc7 {[%clk 0:00:11]}  Qc4+ {[%clk 0:00:04]} 63. Kd6 {[%clk 0:00:11]}  Qa6+ {[%clk 0:00:04]} 64. Kc5 {[%clk 0:00:11]}  Qa7+ {[%clk 0:00:04]} 65. Kc4 {[%clk 0:00:11]}  Qa2+ {[%clk 0:00:04]} 66. Kd3 {[%clk 0:00:10]}  Qd5+ {[%clk 0:00:04]} 67. Ke2 {[%clk 0:00:10]}  Qg2+ {[%clk 0:00:05]} 68. Ke1 {[%clk 0:00:09]}  Qh1+ {[%clk 0:00:05]} 69. Kf2 {[%clk 0:00:10]}  Qh2+ {[%clk 0:00:05]} 70. Kf3 {[%clk 0:00:09]}  Qh3+ {[%clk 0:00:06]} 71. Ke4 {[%clk 0:00:10]}  Qxe6+ {[%clk 0:00:05]} 72. Kd4 {[%clk 0:00:11]}  Qb6+ {[%clk 0:00:06]} 73. Kc3 {[%clk 0:00:11]}  Qc6+ {[%clk 0:00:06]} 74. Kb2 {[%clk 0:00:11]}  h5 {[%clk 0:00:05]} 75. Qd4 {[%clk 0:00:10]}  Qg2 {[%clk 0:00:04]} 76. Kb3 {[%clk 0:00:09]}  Qg4 {[%clk 0:00:04]} 77. Qxg4 {[%clk 0:00:09]}  hxg4 {[%clk 0:00:00]} 78. b5 {[%clk 0:00:09]} 1-0


[Site "https://www.chess.com"]